[Event "Early-Titled-Tuesday-Blitz-May-07-2024"]
[Site "Chess.com"]
[Date "2024.05.07"]
[Round "9"]
[White "BashirovKemal"]
[Black "Sjakkerntobi"]
[Result "1/2-1/2"]
[WhiteElo "2675"]
[BlackElo "2553"]
[TimeControl "180+1"]
[EndTime "9:53:22 PDT"]
[Termination "Game drawn by stalemate"]

1. e4 {[%clk 0:03:00.9]} 1... e6 {[%clk 0:02:59.9]} 2. d4 {[%clk 0:02:57.4]}
2... d5 {[%clk 0:03:00.1]} 3. Nc3 {[%clk 0:02:58.1]} 3... Bb4 {[%clk 0:02:59.8]}
4. e5 {[%clk 0:02:58.6]} 4... Ne7 {[%clk 0:02:59.7]} 5. a3 {[%clk 0:02:57.8]}
5... Bxc3+ {[%clk 0:03:00.2]} 6. bxc3 {[%clk 0:02:58.7]} 6... c5 {[%clk
0:03:01]} 7. a4 {[%clk 0:02:59.2]} 7... Qc7 {[%clk 0:02:50.4]} 8. Nf3 {[%clk
0:02:56.1]} 8... h6 {[%clk 0:02:47.1]} 9. Bd3 {[%clk 0:02:55.1]} 9... b6 {[%clk
0:02:47.1]} 10. O-O {[%clk 0:02:54.6]} 10... Ba6 {[%clk 0:02:45.9]} 11. Bb5+
{[%clk 0:02:44.5]} 11... Bxb5 {[%clk 0:02:45]} 12. axb5 {[%clk 0:02:45.3]} 12...
a5 {[%clk 0:02:45.6]} 13. dxc5 {[%clk 0:02:08.3]} 13... Qxc5 {[%clk 0:02:36.2]}
14. Be3 {[%clk 0:02:04.3]} 14... Qc7 {[%clk 0:02:35.7]} 15. Bd4 {[%clk
0:01:48.8]} 15... Nd7 {[%clk 0:02:34.2]} 16. Qe2 {[%clk 0:01:41.2]} 16... O-O
{[%clk 0:02:27.5]} 17. Ne1 {[%clk 0:01:41.1]} 17... Rfc8 {[%clk 0:02:26.2]} 18.
Nd3 {[%clk 0:01:39.4]} 18... Nf5 {[%clk 0:02:23.9]} 19. Rfc1 {[%clk 0:01:26.8]}
19... Qc4 {[%clk 0:02:18.9]} 20. Qg4 {[%clk 0:01:11.2]} 20... Nc5 {[%clk
0:01:59.6]} 21. Nb2 {[%clk 0:01:05]} 21... Qxb5 {[%clk 0:01:53.8]} 22. Rcb1
{[%clk 0:01:00.8]} 22... a4 {[%clk 0:01:16.3]} 23. Bxc5 {[%clk 0:00:55.6]} 23...
bxc5 {[%clk 0:00:53.7]} 24. Nxa4 {[%clk 0:00:51]} 24... Qc6 {[%clk 0:00:53.4]}
25. Nb2 {[%clk 0:00:47.7]} 25... Qc7 {[%clk 0:00:41.9]} 26. Qe2 {[%clk 0:00:45]}
26... Ne7 {[%clk 0:00:38.8]} 27. c4 {[%clk 0:00:38.4]} 27... Nc6 {[%clk
0:00:34.4]} 28. cxd5 {[%clk 0:00:35.9]} 28... exd5 {[%clk 0:00:35.3]} 29. f4
{[%clk 0:00:33.4]} 29... Nd4 {[%clk 0:00:33.8]} 30. Qd3 {[%clk 0:00:28]} 30...
Rxa1 {[%clk 0:00:30.8]} 31. Rxa1 {[%clk 0:00:28.9]} 31... Qb6 {[%clk 0:00:27.9]}
32. Na4 {[%clk 0:00:26.6]} 32... Qa7 {[%clk 0:00:26.9]} 33. Qd1 {[%clk
0:00:24.4]} 33... Ra8 {[%clk 0:00:22.2]} 34. Ra2 {[%clk 0:00:21.3]} 34... c4
{[%clk 0:00:19.6]} 35. Nc3 {[%clk 0:00:19]} 35... Ne2+ {[%clk 0:00:13.7]} 36.
Kf1 {[%clk 0:00:19.4]} 36... Nxc3 {[%clk 0:00:11.1]} 37. Rxa7 {[%clk 0:00:18.6]}
37... Nxd1 {[%clk 0:00:11]} 38. Rxa8+ {[%clk 0:00:18.6]} 38... Kh7 {[%clk
0:00:11.9]} 39. Rd8 {[%clk 0:00:15]} 39... Kg6 {[%clk 0:00:09]} 40. Ke2 {[%clk
0:00:13.5]} 40... Nc3+ {[%clk 0:00:09]} 41. Kd2 {[%clk 0:00:13.5]} 41... Ne4+
{[%clk 0:00:09.2]} 42. Ke3 {[%clk 0:00:14]} 42... Nc3 {[%clk 0:00:06.7]} 43. g4
{[%clk 0:00:13.8]} 43... h5 {[%clk 0:00:02.6]} 44. gxh5+ {[%clk 0:00:13.2]}
44... Kxh5 {[%clk 0:00:03]} 45. f5 {[%clk 0:00:12.5]} 45... Kg5 {[%clk
0:00:02.8]} 46. e6 {[%clk 0:00:13]} 46... fxe6 {[%clk 0:00:03.7]} 47. fxe6
{[%clk 0:00:13.9]} 47... Kf6 {[%clk 0:00:04.4]} 48. Kd4 {[%clk 0:00:11.9]} 48...
Nb5+ {[%clk 0:00:01.8]} 49. Kxd5 {[%clk 0:00:05.3]} 49... Nc7+ {[%clk
0:00:02.1]} 50. Kxc4 {[%clk 0:00:05.1]} 50... Nxe6 {[%clk 0:00:02.7]} 51. Rd6
{[%clk 0:00:05.1]} 51... Ke5 {[%clk 0:00:03.3]} 52. Rxe6+ {[%clk 0:00:05.2]}
52... Kxe6 {[%clk 0:00:04.2]} 53. Kd4 {[%clk 0:00:05.6]} 53... Kd6 {[%clk
0:00:03.3]} 54. c4 {[%clk 0:00:06.5]} 54... g5 {[%clk 0:00:03.3]} 55. c5+ {[%clk
0:00:06.2]} 55... Kc6 {[%clk 0:00:03.6]} 56. Ke5 {[%clk 0:00:04.9]} 56... g4
{[%clk 0:00:03.2]} 57. Kd4 {[%clk 0:00:04.6]} 57... Kc7 {[%clk 0:00:01.4]} 58.
Kd5 {[%clk 0:00:05.1]} 58... Kd7 {[%clk 0:00:02]} 59. Ke5 {[%clk 0:00:04.6]}
59... Kc6 {[%clk 0:00:02.9]} 60. Kf4 {[%clk 0:00:05.3]} 60... Kxc5 {[%clk
0:00:03.8]} 61. Kxg4 {[%clk 0:00:06.2]} 61... Kd6 {[%clk 0:00:04.7]} 62. Kg5
{[%clk 0:00:07]} 62... Ke7 {[%clk 0:00:05.6]} 63. Kg6 {[%clk 0:00:07.8]} 63...
Kf8 {[%clk 0:00:06.5]} 64. h4 {[%clk 0:00:08.3]} 64... Kg8 {[%clk 0:00:07.2]}
65. h5 {[%clk 0:00:09.2]} 65... Kh8 {[%clk 0:00:08.1]} 66. h6 {[%clk 0:00:10.1]}
66... Kg8 {[%clk 0:00:09]} 67. h7+ {[%clk 0:00:10.7]} 67... Kh8 {[%clk
0:00:09.9]} 68. Kh6 {[%clk 0:00:11.5]} 1/2-1/2

[Event "Early-Titled-Tuesday-Blitz-May-07-2024"]
[Site "Chess.com"]
[Date "2024.05.07"]
[Round "9"]
[White "Mops_2004"]
[Black "Anton_Demchenko"]
[Result "0-1"]
[WhiteElo "2806"]
[BlackElo "2919"]
[TimeControl "180+1"]
[EndTime "9:53:23 PDT"]
[Termination "Anton_Demchenko won by resignation"]

1. e4 {[%clk 0:03:00.9]} 1... e5 {[%clk 0:02:56.2]} 2. Nf3 {[%clk 0:03:00.8]}
2... Nc6 {[%clk 0:02:55]} 3. Bb5 {[%clk 0:03:00.1]} 3... a6 {[%clk 0:02:54.9]}
4. Ba4 {[%clk 0:03:00.2]} 4... Nf6 {[%clk 0:02:55]} 5. O-O {[%clk 0:03:00.4]}
5... d6 {[%clk 0:02:55.6]} 6. c3 {[%clk 0:02:46.2]} 6... Bd7 {[%clk 0:02:54.2]}
7. d4 {[%clk 0:02:44.7]} 7... Qe7 {[%clk 0:02:53.1]} 8. Re1 {[%clk 0:02:40]}
8... g6 {[%clk 0:02:53]} 9. Bg5 {[%clk 0:02:36.4]} 9... Bg7 {[%clk 0:02:51.7]}
10. Nbd2 {[%clk 0:02:33.5]} 10... h6 {[%clk 0:02:44.6]} 11. Bh4 {[%clk
0:02:31.3]} 11... O-O {[%clk 0:02:43.4]} 12. Nf1 {[%clk 0:02:21.4]} 12... Qe8
{[%clk 0:02:37.7]} 13. Ne3 {[%clk 0:02:12.6]} 13... Nxd4 {[%clk 0:02:09.2]} 14.
Bxd7 {[%clk 0:01:35.4]} 14... Nxf3+ {[%clk 0:02:08.3]} 15. Qxf3 {[%clk
0:01:35.8]} 15... Nxd7 {[%clk 0:02:08.9]} 16. Nd5 {[%clk 0:01:35.8]} 16... Qb8
{[%clk 0:02:09.5]} 17. Rad1 {[%clk 0:01:12]} 17... b5 {[%clk 0:01:34.7]} 18. Qg4
{[%clk 0:00:53.5]} 18... Nb6 {[%clk 0:00:57.9]} 19. Ne7+ {[%clk 0:00:36.2]}
19... Kh7 {[%clk 0:00:56.6]} 20. f4 {[%clk 0:00:32.9]} 20... exf4 {[%clk
0:00:52.9]} 21. Qxf4 {[%clk 0:00:31.5]} 21... Nd7 {[%clk 0:00:40]} 22. Nd5
{[%clk 0:00:23.4]} 22... f6 {[%clk 0:00:14.8]} 23. Rf1 {[%clk 0:00:22.5]} 23...
Rf7 {[%clk 0:00:12.2]} 24. Bf2 {[%clk 0:00:19.7]} 24... c6 {[%clk 0:00:09.6]}
25. Nb4 {[%clk 0:00:18.5]} 25... Ne5 {[%clk 0:00:10.3]} 26. h3 {[%clk
0:00:16.3]} 26... Qb7 {[%clk 0:00:09.9]} 27. Rxd6 {[%clk 0:00:15.1]} 27... a5
{[%clk 0:00:08.9]} 28. Nd3 {[%clk 0:00:13.8]} 28... Nc4 {[%clk 0:00:09]} 29. Nc5
{[%clk 0:00:13.2]} 29... Qc7 {[%clk 0:00:08.5]} 30. Bg3 {[%clk 0:00:02.2]} 30...
Nxd6 {[%clk 0:00:07.8]} 31. Qxd6 {[%clk 0:00:03.1]} 31... Qxd6 {[%clk
0:00:08.5]} 32. Bxd6 {[%clk 0:00:04]} 32... Re8 {[%clk 0:00:08.5]} 33. e5 {[%clk
0:00:04.2]} 33... f5 {[%clk 0:00:05.6]} 34. e6 {[%clk 0:00:04.7]} 34... Ra7
{[%clk 0:00:05.9]} 35. g4 {[%clk 0:00:04.4]} 35... fxg4 {[%clk 0:00:05.4]} 36.
hxg4 {[%clk 0:00:05.3]} 36... g5 {[%clk 0:00:05.8]} 37. Rf7 {[%clk 0:00:05.2]}
37... Rxf7 {[%clk 0:00:02.4]} 38. exf7 {[%clk 0:00:06.1]} 38... Re2 {[%clk
0:00:02.3]} 39. Kf1 {[%clk 0:00:05]} 39... Rxb2 {[%clk 0:00:01.9]} 40. Ne6
{[%clk 0:00:05.6]} 40... Kg6 {[%clk 0:00:02.1]} 41. f8=Q {[%clk 0:00:03.8]}
41... Bxf8 {[%clk 0:00:02.3]} 42. Nxf8+ {[%clk 0:00:04.3]} 42... Kf7 {[%clk
0:00:03]} 43. Bc5 {[%clk 0:00:02.4]} 43... Rxa2 {[%clk 0:00:03.2]} 44. Nd7
{[%clk 0:00:02.5]} 44... a4 {[%clk 0:00:03.4]} 45. Ne5+ {[%clk 0:00:01.6]} 45...
Ke6 {[%clk 0:00:03.4]} 46. Nxc6 {[%clk 0:00:02.5]} 46... Rh2 {[%clk 0:00:02.6]}
47. Nb4 {[%clk 0:00:01.2]} 47... a3 {[%clk 0:00:01.5]} 48. Kg1 {[%clk
0:00:01.8]} 48... a2 {[%clk 0:00:02.1]} 49. Nxa2 {[%clk 0:00:02.4]} 49... Rxa2
{[%clk 0:00:02.9]} 50. Bf8 {[%clk 0:00:02.2]} 50... Rc2 {[%clk 0:00:03]} 51. Bg7
{[%clk 0:00:02.2]} 51... Kd5 {[%clk 0:00:02.8]} 52. Kf1 {[%clk 0:00:02.1]} 52...
Ke4 {[%clk 0:00:03]} 53. Ke1 {[%clk 0:00:02.7]} 53... Kf4 {[%clk 0:00:03.4]} 54.
Kd1 {[%clk 0:00:02.7]} 54... Rg2 {[%clk 0:00:03.7]} 55. Bxh6 {[%clk 0:00:02.7]}
55... Kxg4 {[%clk 0:00:04.4]} 56. Kc1 {[%clk 0:00:02.4]} 56... Kf5 {[%clk
0:00:04.9]} 0-1

[Event "Early-Titled-Tuesday-Blitz-May-07-2024"]
[Site "Chess.com"]
[Date "2024.05.07"]
[Round "9"]
[White "ValiantCeleb"]
[Black "CarlosjPineror"]
[Result "1-0"]
[WhiteElo "2315"]
[BlackElo "2676"]
[TimeControl "180+1"]
[EndTime "9:53:29 PDT"]
[Termination "ValiantCeleb won by resignation"]

1. d4 {[%clk 0:03:00.9]} 1... Nf6 {[%clk 0:02:57.3]} 2. Bf4 {[%clk 0:03:00.6]}
2... g6 {[%clk 0:02:56.7]} 3. Nc3 {[%clk 0:02:59.1]} 3... Bg7 {[%clk 0:02:57.1]}
4. e4 {[%clk 0:02:59.5]} 4... d6 {[%clk 0:02:57.5]} 5. Qd2 {[%clk 0:02:59.5]}
5... h5 {[%clk 0:02:54.1]} 6. O-O-O {[%clk 0:02:54.3]} 6... c6 {[%clk
0:02:51.3]} 7. f3 {[%clk 0:02:42.6]} 7... O-O {[%clk 0:02:48]} 8. h3 {[%clk
0:02:36.4]} 8... Qa5 {[%clk 0:02:43.6]} 9. g4 {[%clk 0:02:30.2]} 9... b5 {[%clk
0:02:41.7]} 10. Kb1 {[%clk 0:02:28.4]} 10... b4 {[%clk 0:02:41]} 11. Nce2 {[%clk
0:02:26.6]} 11... Be6 {[%clk 0:02:31.9]} 12. Nc1 {[%clk 0:02:25.8]} 12... Nbd7
{[%clk 0:02:18.7]} 13. g5 {[%clk 0:02:15.5]} 13... Ne8 {[%clk 0:02:10.9]} 14. d5
{[%clk 0:01:57.6]} 14... cxd5 {[%clk 0:02:10.3]} 15. exd5 {[%clk 0:01:56.9]}
15... Bf5 {[%clk 0:02:10.9]} 16. Nb3 {[%clk 0:01:57.1]} 16... Qb6 {[%clk
0:02:05.5]} 17. Ne2 {[%clk 0:01:51.9]} 17... Nc5 {[%clk 0:01:47.3]} 18. Be3
{[%clk 0:01:38]} 18... Nc7 {[%clk 0:01:32.3]} 19. Ned4 {[%clk 0:01:21]} 19...
Bd7 {[%clk 0:01:31.9]} 20. Nxc5 {[%clk 0:01:20.8]} 20... dxc5 {[%clk 0:01:32.8]}
21. Nb3 {[%clk 0:01:21.4]} 21... Na6 {[%clk 0:00:48.8]} 22. Bxa6 {[%clk
0:01:19.4]} 22... Qxa6 {[%clk 0:00:49.7]} 23. Nxc5 {[%clk 0:01:19.6]} 23... Qd6
{[%clk 0:00:44.1]} 24. Bd4 {[%clk 0:01:05.4]} 24... Bf5 {[%clk 0:00:39.2]} 25.
Bxg7 {[%clk 0:01:02.2]} 25... Kxg7 {[%clk 0:00:40.1]} 26. Ne4 {[%clk 0:00:52]}
26... Qd7 {[%clk 0:00:23.1]} 27. h4 {[%clk 0:00:41.8]} 27... a5 {[%clk
0:00:22.2]} 28. d6 {[%clk 0:00:40.4]} 28... Bxe4 {[%clk 0:00:18.2]} 29. dxe7
{[%clk 0:00:34.2]} 29... Qxe7 {[%clk 0:00:14.3]} 30. Qd4+ {[%clk 0:00:34.6]}
30... Kg8 {[%clk 0:00:11.9]} 31. Qxe4 {[%clk 0:00:34.4]} 31... Qxe4 {[%clk
0:00:12.3]} 32. fxe4 {[%clk 0:00:35.3]} 32... Rfe8 {[%clk 0:00:13.2]} 33. Rd4
{[%clk 0:00:35.3]} 33... Re5 {[%clk 0:00:12.2]} 34. a3 {[%clk 0:00:31.4]} 34...
bxa3 {[%clk 0:00:11.6]} 35. bxa3 {[%clk 0:00:32.2]} 35... Rae8 {[%clk
0:00:11.3]} 36. Re1 {[%clk 0:00:30.2]} 36... Rc5 {[%clk 0:00:10.9]} 37. c4
{[%clk 0:00:28]} 37... Rec8 {[%clk 0:00:10.5]} 38. Rc1 {[%clk 0:00:26.7]} 38...
Kg7 {[%clk 0:00:09.4]} 39. Kb2 {[%clk 0:00:26.3]} 39... Rb8+ {[%clk 0:00:09.8]}
40. Kc3 {[%clk 0:00:25.3]} 40... a4 {[%clk 0:00:10.5]} 41. Rd3 {[%clk
0:00:20.7]} 41... Rb3+ {[%clk 0:00:07.7]} 42. Kd4 {[%clk 0:00:20]} 42... Rxd3+
{[%clk 0:00:05.4]} 43. Kxd3 {[%clk 0:00:20.2]} 43... Kf8 {[%clk 0:00:05.9]} 44.
Kd4 {[%clk 0:00:20.6]} 44... Rc7 {[%clk 0:00:06.3]} 45. c5 {[%clk 0:00:21.3]}
45... Ke7 {[%clk 0:00:06.9]} 46. Kc4 {[%clk 0:00:16.1]} 46... Rb7 {[%clk
0:00:06.2]} 47. c6 {[%clk 0:00:11.2]} 47... Rb3 {[%clk 0:00:04.3]} 48. Rc3
{[%clk 0:00:11.6]} 48... Rb1 {[%clk 0:00:01.3]} 49. Kc5 {[%clk 0:00:09.6]} 49...
Kd8 {[%clk 0:00:01.5]} 50. Kd6 {[%clk 0:00:08.2]} 50... Kc8 {[%clk 0:00:02.1]}
51. Ke7 {[%clk 0:00:07.8]} 51... Re1 {[%clk 0:00:02.2]} 52. Kxf7 {[%clk
0:00:07.8]} 52... Rxe4 {[%clk 0:00:02.9]} 53. Kxg6 {[%clk 0:00:07.3]} 53... Rxh4
{[%clk 0:00:03.5]} 54. Kh6 {[%clk 0:00:07.5]} 54... Rh1 {[%clk 0:00:03.4]} 55.
g6 {[%clk 0:00:07.8]} 55... h4 {[%clk 0:00:03.9]} 56. g7 {[%clk 0:00:06.1]}
56... Rg1 {[%clk 0:00:04.3]} 57. Kh7 {[%clk 0:00:06.1]} 57... Kc7 {[%clk
0:00:03.8]} 58. g8=Q {[%clk 0:00:06.1]} 58... Rxg8 {[%clk 0:00:04.4]} 59. Kxg8
{[%clk 0:00:07]} 59... h3 {[%clk 0:00:04.8]} 60. Rxh3 {[%clk 0:00:07.3]} 60...
Kxc6 {[%clk 0:00:05.7]} 61. Rh4 {[%clk 0:00:07.7]} 1-0

[Event "Early-Titled-Tuesday-Blitz-May-07-2024"]
[Site "Chess.com"]
[Date "2024.05.07"]
[Round "9"]
[White "scarabee43"]
[Black "Puzzlebot_1294"]
[Result "0-1"]
[WhiteElo "2816"]
[BlackElo "2670"]
[TimeControl "180+1"]
[EndTime "9:53:36 PDT"]
[Termination "Puzzlebot_1294 won by resignation"]

1. Nf3 {[%clk 0:03:00.9]} 1... Nf6 {[%clk 0:02:58.1]} 2. c4 {[%clk 0:03:01.5]}
2... b6 {[%clk 0:02:57.7]} 3. Nc3 {[%clk 0:03:01.2]} 3... Bb7 {[%clk 0:02:57.8]}
4. g3 {[%clk 0:03:01.2]} 4... e6 {[%clk 0:02:57.7]} 5. Bg2 {[%clk 0:03:01.9]}
5... Be7 {[%clk 0:02:57.2]} 6. O-O {[%clk 0:03:02.5]} 6... O-O {[%clk
0:02:56.5]} 7. Re1 {[%clk 0:02:57.7]} 7... c5 {[%clk 0:02:53]} 8. e4 {[%clk
0:02:57.1]} 8... d6 {[%clk 0:02:53.2]} 9. d4 {[%clk 0:02:56.7]} 9... cxd4 {[%clk
0:02:52]} 10. Nxd4 {[%clk 0:02:57.3]} 10... Qc8 {[%clk 0:02:49.3]} 11. b3 {[%clk
0:02:55.5]} 11... Nc6 {[%clk 0:02:47.4]} 12. Ba3 {[%clk 0:02:51.7]} 12... Rd8
{[%clk 0:02:45.8]} 13. Qd2 {[%clk 0:02:46]} 13... Bf8 {[%clk 0:02:29.6]} 14.
Rad1 {[%clk 0:02:45]} 14... a6 {[%clk 0:02:27.2]} 15. Qe3 {[%clk 0:02:34.7]}
15... Qc7 {[%clk 0:02:23.6]} 16. h3 {[%clk 0:02:16.9]} 16... Nd7 {[%clk
0:02:21]} 17. Bb2 {[%clk 0:02:09.3]} 17... Nxd4 {[%clk 0:02:18.8]} 18. Rxd4
{[%clk 0:02:08.8]} 18... Ne5 {[%clk 0:02:12]} 19. Rd2 {[%clk 0:01:53.4]} 19...
Rac8 {[%clk 0:02:03.7]} 20. Red1 {[%clk 0:01:50.7]} 20... Nd7 {[%clk 0:01:53.2]}
21. h4 {[%clk 0:01:44]} 21... Be7 {[%clk 0:01:47.7]} 22. a4 {[%clk 0:01:21]}
22... Nc5 {[%clk 0:01:42.4]} 23. Ne2 {[%clk 0:01:21.1]} 23... Bf8 {[%clk
0:01:09.3]} 24. Nf4 {[%clk 0:01:18.2]} 24... Nd7 {[%clk 0:01:04.7]} 25. Nd3
{[%clk 0:00:41.2]} 25... Nc5 {[%clk 0:00:54.3]} 26. Nf4 {[%clk 0:00:35.9]} 26...
Nd7 {[%clk 0:00:51.1]} 27. Nh3 {[%clk 0:00:35.1]} 27... Ne5 {[%clk 0:00:47]} 28.
Bd4 {[%clk 0:00:33.3]} 28... Nd7 {[%clk 0:00:43.4]} 29. Ng5 {[%clk 0:00:31.6]}
29... h6 {[%clk 0:00:37.6]} 30. Nh3 {[%clk 0:00:25.9]} 30... Nc5 {[%clk
0:00:33.7]} 31. Bb2 {[%clk 0:00:23.6]} 31... Nd7 {[%clk 0:00:31.2]} 32. Nf4
{[%clk 0:00:23.9]} 32... Ne5 {[%clk 0:00:30.2]} 33. Nh5 {[%clk 0:00:22.2]} 33...
Nc6 {[%clk 0:00:12.9]} 34. Qc3 {[%clk 0:00:18.8]} 34... e5 {[%clk 0:00:12.9]}
35. Bh3 {[%clk 0:00:18.4]} 35... Rb8 {[%clk 0:00:12.3]} 36. Qe3 {[%clk
0:00:16.7]} 36... Be7 {[%clk 0:00:10.3]} 37. Bg4 {[%clk 0:00:08.5]} 37... Bf8
{[%clk 0:00:09.9]} 38. Be2 {[%clk 0:00:06.9]} 38... Na5 {[%clk 0:00:09.3]} 39.
g4 {[%clk 0:00:06.2]} 39... Be7 {[%clk 0:00:08.4]} 40. Ng3 {[%clk 0:00:04.4]}
40... Bxh4 {[%clk 0:00:08.1]} 41. f4 {[%clk 0:00:04.7]} 41... exf4 {[%clk
0:00:07.7]} 42. Qxf4 {[%clk 0:00:04.3]} 42... Bg5 {[%clk 0:00:08.3]} 43. Qf2
{[%clk 0:00:04.1]} 43... Bxd2 {[%clk 0:00:08]} 44. Rxd2 {[%clk 0:00:04.9]} 44...
Nxb3 {[%clk 0:00:08.3]} 45. Rd3 {[%clk 0:00:04.6]} 45... Nc5 {[%clk 0:00:08.6]}
46. Nf5 {[%clk 0:00:04.5]} 46... Nxe4 {[%clk 0:00:08.2]} 47. Qd4 {[%clk
0:00:04.4]} 47... f6 {[%clk 0:00:08.2]} 48. Bf3 {[%clk 0:00:03.9]} 48... Ng5
{[%clk 0:00:06.9]} 49. Bxb7 {[%clk 0:00:03.6]} 49... Qxb7 {[%clk 0:00:06.9]} 50.
Nxh6+ {[%clk 0:00:03.6]} 50... gxh6 {[%clk 0:00:05.7]} 51. Qxf6 {[%clk
0:00:04.3]} 51... Qh7 {[%clk 0:00:05]} 52. Re3 {[%clk 0:00:03.9]} 52... Nf7
{[%clk 0:00:05]} 53. Re7 {[%clk 0:00:03.6]} 53... Rf8 {[%clk 0:00:05.2]} 54. Qd4
{[%clk 0:00:03.1]} 54... Rbe8 {[%clk 0:00:04.9]} 55. Rd7 {[%clk 0:00:03.6]}
55... Re1+ {[%clk 0:00:04.8]} 56. Kg2 {[%clk 0:00:04.2]} 56... Re6 {[%clk
0:00:05.2]} 57. Kg3 {[%clk 0:00:04.5]} 57... Rg6 {[%clk 0:00:05.5]} 58. Re7
{[%clk 0:00:04.8]} 58... h5 {[%clk 0:00:05.9]} 59. Kf2 {[%clk 0:00:05.1]} 59...
hxg4 {[%clk 0:00:06.2]} 60. Ke2 {[%clk 0:00:04.6]} 60... g3 {[%clk 0:00:07.1]}
61. Re4 {[%clk 0:00:02.9]} 61... g2 {[%clk 0:00:06.7]} 62. Rh4 {[%clk
0:00:03.7]} 62... Re6+ {[%clk 0:00:06.1]} 63. Kd2 {[%clk 0:00:03.5]} 63... Ne5
{[%clk 0:00:03.8]} 64. Rxh7 {[%clk 0:00:03.5]} 64... Nf3+ {[%clk 0:00:04.7]} 65.
Kd3 {[%clk 0:00:01.8]} 65... Nxd4 {[%clk 0:00:05.6]} 66. Rh2 {[%clk 0:00:01.5]}
66... g1=Q {[%clk 0:00:04.9]} 0-1

[Event "Early-Titled-Tuesday-Blitz-May-07-2024"]
[Site "Chess.com"]
[Date "2024.05.07"]
[Round "9"]
[White "XDPS"]
[Black "Aswathchess"]
[Result "1/2-1/2"]
[WhiteElo "2833"]
[BlackElo "2661"]
[TimeControl "180+1"]
[EndTime "9:53:50 PDT"]
[Termination "Game drawn - insufficient material"]

1. d4 {[%clk 0:03:00.9]} 1... Nf6 {[%clk 0:02:59]} 2. Nf3 {[%clk 0:02:59.8]}
2... c5 {[%clk 0:02:58.6]} 3. d5 {[%clk 0:02:59.9]} 3... e6 {[%clk 0:02:58.7]}
4. Nc3 {[%clk 0:02:59.3]} 4... d6 {[%clk 0:02:58.6]} 5. e4 {[%clk 0:02:59.3]}
5... exd5 {[%clk 0:02:57.2]} 6. Nxd5 {[%clk 0:02:59.3]} 6... Nxd5 {[%clk
0:02:55.8]} 7. Qxd5 {[%clk 0:02:58.5]} 7... Be7 {[%clk 0:02:55.7]} 8. Bb5+
{[%clk 0:02:57.5]} 8... Bd7 {[%clk 0:02:53.7]} 9. Bd3 {[%clk 0:02:26.3]} 9...
Nc6 {[%clk 0:02:36.2]} 10. c3 {[%clk 0:02:22.3]} 10... g6 {[%clk 0:01:48.1]} 11.
Qb3 {[%clk 0:02:15.1]} 11... Qb6 {[%clk 0:01:38.3]} 12. Qc2 {[%clk 0:02:14.9]}
12... O-O {[%clk 0:01:37.4]} 13. O-O {[%clk 0:02:14.5]} 13... Rfe8 {[%clk
0:01:37.4]} 14. Re1 {[%clk 0:02:14.4]} 14... Bg4 {[%clk 0:01:37.3]} 15. Nd2
{[%clk 0:02:13.5]} 15... Bf8 {[%clk 0:01:34.5]} 16. h3 {[%clk 0:02:12.9]} 16...
Be6 {[%clk 0:01:33.9]} 17. Nc4 {[%clk 0:02:13]} 17... Qc7 {[%clk 0:01:34.2]} 18.
Bf4 {[%clk 0:02:12.8]} 18... Qd7 {[%clk 0:01:33.8]} 19. Rad1 {[%clk 0:02:11.6]}
19... Rad8 {[%clk 0:01:29.4]} 20. Bf1 {[%clk 0:02:07]} 20... Qc7 {[%clk
0:01:28.2]} 21. Ne3 {[%clk 0:02:04.1]} 21... Bg7 {[%clk 0:01:22.2]} 22. Nd5
{[%clk 0:02:04.3]} 22... Bxd5 {[%clk 0:01:22.1]} 23. Rxd5 {[%clk 0:02:04.4]}
23... Ne5 {[%clk 0:01:17.5]} 24. Red1 {[%clk 0:02:04.1]} 24... Re6 {[%clk
0:01:14.7]} 25. Bg3 {[%clk 0:01:51.6]} 25... Qe7 {[%clk 0:00:55.7]} 26. b4
{[%clk 0:01:45.7]} 26... cxb4 {[%clk 0:00:46.2]} 27. cxb4 {[%clk 0:01:46.6]}
27... Nc6 {[%clk 0:00:46.8]} 28. a3 {[%clk 0:01:43.8]} 28... Be5 {[%clk
0:00:45.6]} 29. f4 {[%clk 0:01:35.9]} 29... Bf6 {[%clk 0:00:44]} 30. Bd3 {[%clk
0:01:34.6]} 30... Bh4 {[%clk 0:00:23.1]} 31. Bh2 {[%clk 0:01:34.1]} 31... Qe8
{[%clk 0:00:15.6]} 32. f5 {[%clk 0:01:02.1]} 32... gxf5 {[%clk 0:00:14.9]} 33.
Rxf5 {[%clk 0:01:02.8]} 33... Nd4 {[%clk 0:00:14.5]} 34. Qc1 {[%clk 0:00:37.4]}
34... Nxf5 {[%clk 0:00:11.4]} 35. exf5 {[%clk 0:00:38.3]} 35... Re1+ {[%clk
0:00:11.9]} 36. Bf1 {[%clk 0:00:35.6]} 36... Qe3+ {[%clk 0:00:07.5]} 37. Qxe3
{[%clk 0:00:35.4]} 37... Rxe3 {[%clk 0:00:08.4]} 38. a4 {[%clk 0:00:25.4]} 38...
Bg3 {[%clk 0:00:06.4]} 39. Bxg3 {[%clk 0:00:24.4]} 39... Rxg3 {[%clk 0:00:07.3]}
40. Rd4 {[%clk 0:00:24.4]} 40... Re3 {[%clk 0:00:06.9]} 41. Kf2 {[%clk
0:00:24.1]} 41... Re5 {[%clk 0:00:06.6]} 42. g4 {[%clk 0:00:24.5]} 42... Kf8
{[%clk 0:00:05.4]} 43. Rc4 {[%clk 0:00:22.4]} 43... Ke7 {[%clk 0:00:05.8]} 44.
Bd3 {[%clk 0:00:21.5]} 44... Kd7 {[%clk 0:00:05.3]} 45. f6 {[%clk 0:00:19.1]}
45... Ke6 {[%clk 0:00:04.3]} 46. Rc7 {[%clk 0:00:18.7]} 46... Kxf6 {[%clk
0:00:02.7]} 47. Rxb7 {[%clk 0:00:18.8]} 47... a5 {[%clk 0:00:03.3]} 48. b5
{[%clk 0:00:18.7]} 48... h5 {[%clk 0:00:02.6]} 49. Ra7 {[%clk 0:00:16.9]} 49...
Rc8 {[%clk 0:00:02.7]} 50. b6 {[%clk 0:00:12.8]} 50... Rc3 {[%clk 0:00:02.6]}
51. b7 {[%clk 0:00:12.5]} 51... Rb3 {[%clk 0:00:01.9]} 52. Bb5 {[%clk
0:00:10.8]} 52... Rexb5 {[%clk 0:00:02.5]} 53. axb5 {[%clk 0:00:11.2]} 53...
Rxb5 {[%clk 0:00:03.4]} 54. Kg3 {[%clk 0:00:09.2]} 54... hxg4 {[%clk 0:00:03.2]}
55. hxg4 {[%clk 0:00:10.1]} 55... Rb6 {[%clk 0:00:03.6]} 56. Kf4 {[%clk
0:00:09.1]} 56... Kg6 {[%clk 0:00:04.1]} 57. Ke4 {[%clk 0:00:08.3]} 57... Rb5
{[%clk 0:00:04.7]} 58. Kd4 {[%clk 0:00:08.3]} 58... f6 {[%clk 0:00:04.2]} 59.
Kc4 {[%clk 0:00:08.3]} 59... Rb4+ {[%clk 0:00:04.9]} 60. Kd5 {[%clk 0:00:08.5]}
60... Kg5 {[%clk 0:00:04.7]} 61. Kxd6 {[%clk 0:00:08]} 61... Kxg4 {[%clk
0:00:05.2]} 62. Kc6 {[%clk 0:00:07.9]} 62... f5 {[%clk 0:00:05.7]} 63. Rxa5
{[%clk 0:00:08.5]} 63... Rxb7 {[%clk 0:00:05.7]} 64. Kxb7 {[%clk 0:00:09.2]}
64... f4 {[%clk 0:00:06.6]} 65. Kc6 {[%clk 0:00:09.9]} 65... f3 {[%clk 0:00:07]}
66. Kd5 {[%clk 0:00:10.5]} 66... f2 {[%clk 0:00:07.5]} 67. Ra1 {[%clk
0:00:10.3]} 67... Kf3 {[%clk 0:00:08]} 68. Kd4 {[%clk 0:00:09.7]} 68... Kg2
{[%clk 0:00:07.6]} 69. Ra2 {[%clk 0:00:08.6]} 69... Kg1 {[%clk 0:00:08.3]} 70.
Rxf2 {[%clk 0:00:09]} 70... Kxf2 {[%clk 0:00:08.5]} 1/2-1/2